[Event "Schack-SM 2022: Mastarklassen"]
[Site "Fyrishov, Idrottsgatan 2, Uppsala, Sweden"]
[Date "2022.07.06"]
[Round "5.5"]
[White "Hammarstrom, Ulf"]
[Black "Mardell, Jimmy"]
[Result "0-1"]
[TimeControl "90 minutes for 40 moves + 30 minutes for the rest of the game + 30 seconds per move from move one."]
[WhiteFideId "1710214"]
[BlackFideId "1705610"]
[WhiteElo "2233"]
[BlackElo "2161"]

1. e4 {[%clk 01:29:26]} {[%emt 00:01:33]} c5 {[%clk 01:30:45]} {[%emt
00:00:16]} 2. c3 {[%clk 01:29:34]} {[%emt 00:00:22]} d5 {[%clk 01:30:00]}
{[%emt 00:01:14]} 3. exd5 {[%clk 01:29:14]} {[%emt 00:00:50]} Qxd5 {[%clk
01:30:25]} {[%emt 00:00:05]} 4. d4 {[%clk 01:29:40]} {[%emt 00:00:04]} Nc6
{[%clk 01:30:49]} {[%emt 00:00:06]} 5. Nf3 {[%clk 01:30:03]} {[%emt 00:00:07]}
cxd4 {[%clk 01:30:41]} {[%emt 00:00:39]} 6. cxd4 {[%clk 01:30:27]} {[%emt
00:00:06]} e5 {[%clk 01:31:04]} {[%emt 00:00:07]} 7. Nc3 {[%clk 01:30:33]}
{[%emt 00:00:23]} Bb4 {[%clk 01:31:21]} {[%emt 00:00:13]} 8. Be2 {[%clk
01:30:48]} {[%emt 00:00:15]} Nxd4 {[%clk 01:21:18]} {[%emt 00:10:33]} 9. Bd2
{[%clk 01:30:47]} {[%emt 00:00:32]} Qd6 {[%clk 00:59:41]} {[%emt 00:22:07]} 10.
Nxd4 {[%clk 01:19:10]} {[%emt 00:12:07]} Qxd4 {[%clk 00:55:53]} {[%emt
00:04:17]} 11. O-O {[%clk 01:02:38]} {[%emt 00:17:03]} Bd7 {[%clk 00:37:14]}
{[%emt 00:19:09]} 12. Qb3 {[%clk 00:59:33]} {[%emt 00:03:35]} Nf6 {[%clk
00:13:49]} {[%emt 00:23:55]} 13. Be3 {[%clk 00:41:45]} {[%emt 00:18:19]} Qd6
{[%clk 00:05:10]} {[%emt 00:09:09]} 14. Nb5 {[%clk 00:37:02]} {[%emt 00:05:13]}
Bxb5 {[%clk 00:05:35]} {[%emt 00:00:05]} 15. Bxb5+ {[%clk 00:37:06]} {[%emt
00:00:25]} Kf8 {[%clk 00:05:57]} {[%emt 00:00:09]} 16. Rac1 {[%clk 00:26:37]}
{[%emt 00:10:59]} Kg8 {[%clk 00:04:51]} {[%emt 00:01:36]} 17. Rfd1 {[%clk
00:25:09]} {[%emt 00:01:58]} Qe7 {[%clk 00:04:43]} {[%emt 00:00:38]} 18. Bg5
{[%clk 00:20:44]} {[%emt 00:04:54]} Bd6 {[%clk 00:04:39]} {[%emt 00:00:34]} 19.
Qd3 {[%clk 00:12:25]} {[%emt 00:08:48]} Rd8 {[%clk 00:04:20]} {[%emt 00:00:49]}
20. Qc4 {[%clk 00:09:16]} {[%emt 00:03:39]} h6 {[%clk 00:03:47]} {[%emt
00:01:04]} 21. Bxf6 {[%clk 00:09:30]} {[%emt 00:00:16]} Qxf6 {[%clk 00:04:07]}
{[%emt 00:00:10]} 22. Rd3 {[%clk 00:08:57]} {[%emt 00:01:01]} a6 {[%clk
00:03:08]} {[%emt 00:01:30]} 23. Ba4 {[%clk 00:03:40]} {[%emt 00:05:47]} b5
{[%clk 00:03:31]} {[%emt 00:00:06]} 24. Qc6 {[%clk 00:03:29]} {[%emt 00:00:41]}
e4 {[%clk 00:02:21]} {[%emt 00:01:40]} 25. Rd5 {[%clk 00:03:22]} {[%emt
00:00:37]} bxa4 {[%clk 00:02:38]} {[%emt 00:00:14]} 26. Rcd1 {[%clk 00:03:35]}
{[%emt 00:00:18]} Bxh2+ {[%clk 00:02:55]} {[%emt 00:00:12]} 27. Kxh2 {[%clk
00:03:08]} {[%emt 00:00:56]} Qxc6 {[%clk 00:03:20]} {[%emt 00:00:06]} 28. Rxd8+
{[%clk 00:03:35]} {[%emt 00:00:03]} Kh7 {[%clk 00:03:45]} {[%emt 00:00:05]} 0-1

[Event "Schack-SM 2022: Mastarklassen"]
[Site "Fyrishov, Idrottsgatan 2, Uppsala, Sweden"]
[Date "2022.07.06"]
[Round "5.6"]
[White "Johansson, Thomas"]
[Black "Sundin, Emanuel"]
[Result "1/2-1/2"]
[TimeControl "90 minutes for 40 moves + 30 minutes for the rest of the game + 30 seconds per move from move one."]
[WhiteFideId "1708244"]
[BlackFideId "1719173"]
[WhiteElo "2231"]
[BlackElo "2160"]

1. d4 {[%clk 01:28:30]} {[%emt 00:01:25]} d5 {[%clk 01:30:07]} {[%emt
00:00:54]} 2. Bf4 {[%clk 01:28:23]} {[%emt 00:00:36]} c5 {[%clk 01:29:03]}
{[%emt 00:01:34]} 3. e3 {[%clk 01:27:43]} {[%emt 00:01:09]} Nc6 {[%clk
01:29:06]} {[%emt 00:00:29]} 4. c3 {[%clk 01:27:20]} {[%emt 00:00:53]} Qb6
{[%clk 01:23:40]} {[%emt 00:05:57]} 5. Qb3 {[%clk 01:26:29]} {[%emt 00:01:20]}
c4 {[%clk 01:22:29]} {[%emt 00:01:41]} 6. Qc2 {[%clk 01:26:42]} {[%emt
00:00:17]} e5 {[%clk 01:22:07]} {[%emt 00:00:51]} 7. dxe5 {[%clk 01:24:52]}
{[%emt 00:02:20]} Bf5 {[%clk 01:21:53]} {[%emt 00:00:44]} 8. Qc1 {[%clk
01:25:12]} {[%emt 00:00:10]} g5 {[%clk 01:21:49]} {[%emt 00:00:33]} 9. Bg3
{[%clk 01:25:11]} {[%emt 00:00:30]} h5 {[%clk 01:21:55]} {[%emt 00:00:25]} 10.
h4 {[%clk 01:25:30]} {[%emt 00:00:11]} g4 {[%clk 01:21:17]} {[%emt 00:01:09]}
11. Ne2 {[%clk 01:24:26]} {[%emt 00:01:33]} Bg7 {[%clk 01:18:06]} {[%emt
00:03:41]} 12. Nd4 {[%clk 01:24:06]} {[%emt 00:00:50]} Nge7 {[%clk 01:12:09]}
{[%emt 00:06:27]} 13. Nd2 {[%clk 01:24:03]} {[%emt 00:00:33]} Bxe5 {[%clk
01:02:06]} {[%emt 00:10:34]} 14. e4 {[%clk 00:47:07]} {[%emt 00:37:25]} Bxg3
{[%clk 00:44:27]} {[%emt 00:18:09]} 15. fxg3 {[%clk 00:47:30]} {[%emt
00:00:07]} Nxd4 {[%clk 00:41:06]} {[%emt 00:03:51]} 16. cxd4 {[%clk 00:47:55]}
{[%emt 00:00:06]} Qxd4 {[%clk 00:40:34]} {[%emt 00:01:02]} 17. Qc3 {[%clk
00:45:44]} {[%emt 00:02:39]} Qxc3 {[%clk 00:35:31]} {[%emt 00:05:34]} 18. bxc3
{[%clk 00:46:09]} {[%emt 00:00:05]} Bxe4 {[%clk 00:22:13]} {[%emt 00:13:48]} 19.
Bxc4 {[%clk 00:46:04]} {[%emt 00:00:35]} Bxg2 {[%clk 00:21:20]} {[%emt
00:01:23]} 20. Bb5+ {[%clk 00:46:29]} {[%emt 00:00:05]} Nc6 {[%clk 00:20:02]}
{[%emt 00:01:49]} 21. Rh2 {[%clk 00:43:21]} {[%emt 00:03:37]} Be4 {[%clk
00:19:40]} {[%emt 00:00:53]} 22. Nxe4 {[%clk 00:33:38]} {[%emt 00:10:13]} dxe4
{[%clk 00:20:05]} {[%emt 00:00:04]} 23. Rf2 {[%clk 00:33:39]} {[%emt 00:00:29]}
Rh6 {[%clk 00:17:17]} {[%emt 00:03:18]} 24. Rd1 {[%clk 00:29:54]} {[%emt
00:04:14]} Ke7 {[%clk 00:17:12]} {[%emt 00:00:36]} 25. Rf4 {[%clk 00:29:04]}
{[%emt 00:01:19]} Re6 {[%clk 00:17:15]} {[%emt 00:00:28]} 26. Bc4 {[%clk
00:29:11]} {[%emt 00:00:23]} Rf6 {[%clk 00:14:34]} {[%emt 00:03:10]} 27. Rxe4+
{[%clk 00:24:13]} {[%emt 00:05:28]} Kf8 {[%clk 00:14:59]} {[%emt 00:00:06]} 28.
Rd7 {[%clk 00:12:59]} {[%emt 00:11:43]} Rc8 {[%clk 00:14:09]} {[%emt 00:01:21]}
29. Be2 {[%clk 00:11:46]} {[%emt 00:01:43]} Nd8 {[%clk 00:12:27]} {[%emt
00:02:12]} 30. Rd5 {[%clk 00:11:55]} {[%emt 00:00:20]} Rh6 {[%clk 00:06:24]}
{[%emt 00:06:34]} 31. Ree5 {[%clk 00:06:28]} {[%emt 00:05:57]} Ne6 {[%clk
00:06:13]} {[%emt 00:00:41]} 1/2-1/2

[Event "Schack-SM 2022: Mastarklassen"]
[Site "Fyrishov, Idrottsgatan 2, Uppsala, Sweden"]
[Date "2022.07.06"]
[Round "5.7"]
[White "Lundberg, David"]
[Black "Landgren, Andreas"]
[Result "0-1"]
[TimeControl "90 minutes for 40 moves + 30 minutes for the rest of the game + 30 seconds per move from move one."]
[BlackTitle "FM"]
[WhiteFideId "1707051"]
[BlackFideId "1704311"]
[WhiteElo "2219"]
[BlackElo "2224"]

1. d4 {[%clk 01:29:28]} {[%emt 00:01:31]} Nf6 {[%clk 01:30:53]} {[%emt
00:00:09]} 2. c4 {[%clk 01:29:54]} {[%emt 00:00:04]} e6 {[%clk 01:31:17]}
{[%emt 00:00:05]} 3. Nc3 {[%clk 01:30:20]} {[%emt 00:00:04]} Bb4 {[%clk
01:31:42]} {[%emt 00:00:06]} 4. e3 {[%clk 01:30:44]} {[%emt 00:00:04]} O-O
{[%clk 01:31:50]} {[%emt 00:00:23]} 5. Nge2 {[%clk 01:31:07]} {[%emt 00:00:08]}
Re8 {[%clk 01:32:04]} {[%emt 00:00:16]} 6. a3 {[%clk 01:31:30]} {[%emt
00:00:07]} Bf8 {[%clk 01:32:26]} {[%emt 00:00:08]} 7. d5 {[%clk 01:31:47]}
{[%emt 00:00:14]} a5 {[%clk 01:26:22]} {[%emt 00:06:34]} 8. g3 {[%clk
01:31:14]} {[%emt 00:01:02]} Na6 {[%clk 01:12:46]} {[%emt 00:14:06]} 9. Bg2
{[%clk 01:31:29]} {[%emt 00:00:14]} Nc5 {[%clk 01:11:53]} {[%emt 00:01:24]} 10.
b3 {[%clk 01:29:27]} {[%emt 00:02:32]} exd5 {[%clk 01:09:41]} {[%emt 00:02:42]}
11. cxd5 {[%clk 01:28:10]} {[%emt 00:01:47]} b6 {[%clk 01:07:21]} {[%emt
00:02:50]} 12. O-O {[%clk 01:25:21]} {[%emt 00:03:19]} Ba6 {[%clk 00:59:22]}
{[%emt 00:08:29]} 13. h3 {[%clk 00:59:49]} {[%emt 00:26:01]} g6 {[%clk
00:55:41]} {[%emt 00:04:12]} 14. Ra2 {[%clk 00:57:42]} {[%emt 00:02:37]} Nd3
{[%clk 00:42:37]} {[%emt 00:13:34]} 15. Bd2 {[%clk 00:53:36]} {[%emt 00:04:35]}
Rc8 {[%clk 00:42:41]} {[%emt 00:00:27]} 16. Qb1 {[%clk 00:47:42]} {[%emt
00:06:23]} c6 {[%clk 00:40:09]} {[%emt 00:03:03]} 17. Rd1 {[%clk 00:44:30]}
{[%emt 00:03:42]} c5 {[%clk 00:34:15]} {[%emt 00:06:24]} 18. Nf4 {[%clk
00:29:54]} {[%emt 00:15:05]} Nxf4 {[%clk 00:34:19]} {[%emt 00:00:26]} 19. gxf4
{[%clk 00:30:22]} {[%emt 00:00:02]} Nh5 {[%clk 00:29:32]} {[%emt 00:05:17]} 20.
Bc1 {[%clk 00:26:49]} {[%emt 00:04:03]} d6 {[%clk 00:27:29]} {[%emt 00:02:34]}
21. Ne4 {[%clk 00:22:58]} {[%emt 00:04:21]} h6 {[%clk 00:27:13]} {[%emt
00:00:46]} 22. a4 {[%clk 00:17:53]} {[%emt 00:05:35]} f5 {[%clk 00:18:38]}
{[%emt 00:09:05]} 23. Nd2 {[%clk 00:16:24]} {[%emt 00:01:59]} Bg7 {[%clk
00:16:27]} {[%emt 00:02:41]} 24. Nc4 {[%clk 00:15:59]} {[%emt 00:00:55]} Nf6
{[%clk 00:13:39]} {[%emt 00:03:19]} 25. Bb2 {[%clk 00:14:17]} {[%emt 00:02:12]}
Ne4 {[%clk 00:13:08]} {[%emt 00:01:01]} 26. Bxg7 {[%clk 00:14:06]} {[%emt
00:00:40]} Kxg7 {[%clk 00:13:36]} {[%emt 00:00:02]} 27. Qa1+ {[%clk 00:10:50]}
{[%emt 00:03:47]} Kf7 {[%clk 00:13:52]} {[%emt 00:00:13]} 28. f3 {[%clk
00:08:31]} {[%emt 00:02:48]} Nf6 {[%clk 00:13:31]} {[%emt 00:00:52]} 29. Re2
{[%clk 00:07:50]} {[%emt 00:01:11]} Nh5 {[%clk 00:12:54]} {[%emt 00:01:07]} 30.
Qc1 {[%clk 00:07:50]} {[%emt 00:00:29]} Nxf4 {[%clk 00:12:31]} {[%emt
00:00:53]} 31. Rf2 {[%clk 00:06:24]} {[%emt 00:01:56]} Nxg2 {[%clk 00:12:25]}
{[%emt 00:00:37]} 32. Rxg2 {[%clk 00:06:42]} {[%emt 00:00:11]} Bxc4 {[%clk
00:12:24]} {[%emt 00:00:31]} 33. bxc4 {[%clk 00:06:47]} {[%emt 00:00:25]} Qh4
{[%clk 00:11:42]} {[%emt 00:01:12]} 34. Kh2 {[%clk 00:05:51]} {[%emt 00:01:26]}
Qe7 {[%clk 00:06:28]} {[%emt 00:05:44]} 35. Rd3 {[%clk 00:05:18]} {[%emt
00:01:03]} Qd7 {[%clk 00:04:22]} {[%emt 00:02:37]} 36. Qc2 {[%clk 00:03:52]}
{[%emt 00:01:54]} Re5 {[%clk 00:03:58]} {[%emt 00:00:54]} 37. Ra3 {[%clk
00:04:02]} {[%emt 00:00:20]} Rce8 {[%clk 00:04:01]} {[%emt 00:00:28]} 38. Qd2
{[%clk 00:04:14]} {[%emt 00:00:18]} Qe7 {[%clk 00:03:56]} {[%emt 00:00:35]} 39.
Re2 {[%clk 00:03:31]} {[%emt 00:01:12]} Qh4 {[%clk 00:03:47]} {[%emt 00:00:40]}
40. Rb3 {[%clk 00:00:40]} {[%emt 00:03:22]} f4 {[%clk 00:03:27]} {[%emt
00:00:50]} 41. e4 {[%clk 00:22:47]} {[%emt 00:08:23]} Qg3+ {[%clk 00:28:59]}
{[%emt 00:04:58]} 42. Kh1 {[%clk 00:23:02]} {[%emt 00:00:15]} Qxh3+ {[%clk
00:29:23]} {[%emt 00:00:05]} 43. Kg1 {[%clk 00:23:17]} {[%emt 00:00:15]} Rg5+
{[%clk 00:25:56]} {[%emt 00:03:57]} 44. Rg2 {[%clk 00:23:32]} {[%emt 00:00:15]}
Rxg2+ {[%clk 00:19:31]} {[%emt 00:06:56]} 45. Qxg2 {[%clk 00:24:00]} {[%emt
00:00:02]} Qxg2+ {[%clk 00:19:52]} {[%emt 00:00:09]} 46. Kxg2 {[%clk 00:24:25]}
{[%emt 00:00:04]} Rb8 {[%clk 00:20:15]} {[%emt 00:00:08]} 47. Kh3 {[%clk
00:23:37]} {[%emt 00:01:19]} h5 {[%clk 00:18:43]} {[%emt 00:02:02]} 48. Rb1
{[%clk 00:23:17]} {[%emt 00:00:49]} Kf6 {[%clk 00:18:10]} {[%emt 00:01:04]} 49.
Rb2 {[%clk 00:22:14]} {[%emt 00:01:33]} g5 {[%clk 00:18:11]} {[%emt 00:00:29]}
50. Rg2 {[%clk 00:18:55]} {[%emt 00:03:49]} Rg8 {[%clk 00:17:32]} {[%emt
00:01:10]} 51. Rb2 {[%clk 00:17:19]} {[%emt 00:02:06]} g4+ {[%clk 00:17:44]}
{[%emt 00:00:17]} 52. Kg2 {[%clk 00:16:36]} {[%emt 00:01:13]} Rb8 {[%clk
00:17:21]} {[%emt 00:00:54]} 53. Rb1 {[%clk 00:16:45]} {[%emt 00:00:21]} g3
{[%clk 00:12:39]} {[%emt 00:05:11]} 54. Rh1 {[%clk 00:15:30]} {[%emt 00:01:45]}
Rh8 {[%clk 00:10:11]} {[%emt 00:02:58]} 55. Rb1 {[%clk 00:06:17]} {[%emt
00:09:43]} h4 {[%clk 00:07:14]} {[%emt 00:03:28]} 56. Kh3 {[%clk 00:06:29]}
{[%emt 00:00:18]} Rg8 {[%clk 00:04:36]} {[%emt 00:03:09]} 57. Rg1 {[%clk
00:04:43]} {[%emt 00:02:15]} Ke5 {[%clk 00:03:35]} {[%emt 00:01:31]} 58. Kxh4
{[%clk 00:04:32]} {[%emt 00:00:41]} Kd4 {[%clk 00:03:09]} {[%emt 00:00:57]} 59.
Kh3 {[%clk 00:04:29]} {[%emt 00:00:33]} Kxc4 {[%clk 00:03:20]} {[%emt
00:00:19]} 60. Kg2 {[%clk 00:04:31]} {[%emt 00:00:27]} Kd3 {[%clk 00:03:13]}
{[%emt 00:00:38]} 61. Rb1 {[%clk 00:04:16]} {[%emt 00:00:45]} Rb8 {[%clk
00:03:18]} {[%emt 00:00:25]} 62. e5 {[%clk 00:03:02]} {[%emt 00:01:43]} dxe5
{[%clk 00:03:42]} {[%emt 00:00:06]} 63. d6 {[%clk 00:03:10]} {[%emt 00:00:23]}
c4 {[%clk 00:03:33]} {[%emt 00:00:40]} 64. d7 {[%clk 00:02:54]} {[%emt
00:00:45]} Rd8 {[%clk 00:03:59]} {[%emt 00:00:04]} 65. Rd1+ {[%clk 00:02:45]}
{[%emt 00:00:39]} Kc2 {[%clk 00:03:30]} {[%emt 00:00:59]} 66. Rd6 {[%clk
00:00:53]} {[%emt 00:02:21]} c3 {[%clk 00:03:55]} {[%emt 00:00:05]} 67. Kg1
{[%clk 00:01:18]} {[%emt 00:00:04]} Kb3 {[%clk 00:04:14]} {[%emt 00:00:12]} 68.
Rxb6+ {[%clk 00:00:46]} {[%emt 00:01:03]} Kxa4 {[%clk 00:04:39]} {[%emt
00:00:05]} 0-1

[Event "Schack-SM 2022: Mastarklassen"]
[Site "Fyrishov, Idrottsgatan 2, Uppsala, Sweden"]
[Date "2022.07.05"]
[Round "4.2"]
[White "Carlstrom, Niklas"]
[Black "Crevatin, Leo"]
[Result "0-1"]
[TimeControl "90 minutes for 40 moves + 30 minutes for the rest of the game + 30 seconds per move from move one."]
[BlackTitle "CM"]
[WhiteFideId "1704648"]
[BlackFideId "1726307"]
[WhiteElo "2125"]
[BlackElo "2259"]

1. e4 {[%clk 01:30:55]} {[%emt 00:00:02]} c6 {[%clk 01:28:33]} {[%emt
00:02:29]} 2. Nc3 {[%clk 01:31:09]} {[%emt 00:00:15]} d5 {[%clk 01:29:00]}
{[%emt 00:00:03]} 3. Nf3 {[%clk 01:31:31]} {[%emt 00:00:08]} Bg4 {[%clk
01:29:11]} {[%emt 00:00:19]} 4. h3 {[%clk 01:31:45]} {[%emt 00:00:15]} Bxf3
{[%clk 01:28:35]} {[%emt 00:01:07]} 5. Qxf3 {[%clk 01:32:05]} {[%emt 00:00:09]}
e6 {[%clk 01:29:03]} {[%emt 00:00:03]} 6. d4 {[%clk 01:31:52]} {[%emt
00:00:42]} Nf6 {[%clk 01:26:27]} {[%emt 00:03:07]} 7. exd5 {[%clk 01:31:01]}
{[%emt 00:01:22]} cxd5 {[%clk 01:25:12]} {[%emt 00:01:45]} 8. Bd3 {[%clk
01:27:43]} {[%emt 00:03:47]} Nc6 {[%clk 01:24:08]} {[%emt 00:01:35]} 9. Ne2
{[%clk 01:27:19]} {[%emt 00:00:52]} Bd6 {[%clk 01:22:01]} {[%emt 00:02:38]} 10.
Bg5 {[%clk 01:24:59]} {[%emt 00:02:49]} Be7 {[%clk 01:20:13]} {[%emt 00:02:20]}
11. c3 {[%clk 01:21:23]} {[%emt 00:04:04]} h6 {[%clk 01:18:43]} {[%emt
00:02:01]} 12. Bh4 {[%clk 01:17:17]} {[%emt 00:04:35]} a6 {[%clk 01:15:29]}
{[%emt 00:03:46]} 13. Qe3 {[%clk 01:08:18]} {[%emt 00:09:28]} Nh5 {[%clk
01:06:10]} {[%emt 00:09:50]} 14. Bxe7 {[%clk 01:00:19]} {[%emt 00:08:29]} Qxe7
{[%clk 01:06:28]} {[%emt 00:00:11]} 15. f4 {[%clk 01:00:23]} {[%emt 00:00:25]}
f5 {[%clk 01:01:43]} {[%emt 00:05:16]} 16. g4 {[%clk 00:52:38]} {[%emt
00:08:14]} Nf6 {[%clk 01:01:33]} {[%emt 00:00:41]} 17. Ng3 {[%clk 00:52:15]}
{[%emt 00:00:52]} g6 {[%clk 00:56:52]} {[%emt 00:05:12]} 18. O-O-O {[%clk
00:47:54]} {[%emt 00:04:50]} O-O-O {[%clk 00:56:12]} {[%emt 00:01:10]} 19. Kb1
{[%clk 00:45:19]} {[%emt 00:03:05]} Kb8 {[%clk 00:55:15]} {[%emt 00:01:26]} 20.
Rhe1 {[%clk 00:32:09]} {[%emt 00:13:41]} Ne4 {[%clk 00:52:22]} {[%emt
00:03:23]} 21. Nxe4 {[%clk 00:31:49]} {[%emt 00:00:49]} fxe4 {[%clk 00:50:57]}
{[%emt 00:01:55]} 22. Bxe4 {[%clk 00:26:32]} {[%emt 00:05:47]} dxe4 {[%clk
00:51:12]} {[%emt 00:00:15]} 23. Qxe4 {[%clk 00:26:53]} {[%emt 00:00:09]} Qf6
{[%clk 00:37:36]} {[%emt 00:14:06]} 24. Qxe6 {[%clk 00:26:02]} {[%emt
00:01:20]} Qxf4 {[%clk 00:36:38]} {[%emt 00:01:28]} 25. Qxg6 {[%clk 00:25:21]}
{[%emt 00:01:11]} Rd6 {[%clk 00:35:34]} {[%emt 00:01:35]} 26. Qg7 {[%clk
00:19:19]} {[%emt 00:06:31]} Rhd8 {[%clk 00:33:29]} {[%emt 00:02:35]} 27. Qh7
{[%clk 00:12:27]} {[%emt 00:07:21]} Qh2 {[%clk 00:28:15]} {[%emt 00:05:45]} 28.
Qd3 {[%clk 00:09:42]} {[%emt 00:03:16]} Rf6 {[%clk 00:24:45]} {[%emt 00:04:00]}
29. Re2 {[%clk 00:07:59]} {[%emt 00:02:12]} Qd6 {[%clk 00:23:11]} {[%emt
00:02:05]} 30. Rde1 {[%clk 00:07:13]} {[%emt 00:01:15]} Qd5 {[%clk 00:20:23]}
{[%emt 00:03:19]} 31. Qg3+ {[%clk 00:06:13]} {[%emt 00:01:29]} Ka7 {[%clk
00:19:33]} {[%emt 00:01:21]} 32. Rf2 {[%clk 00:04:04]} {[%emt 00:02:38]} Rdf8
{[%clk 00:19:10]} {[%emt 00:00:53]} 33. Rxf6 {[%clk 00:04:15]} {[%emt
00:00:19]} Rxf6 {[%clk 00:19:38]} {[%emt 00:00:03]} 34. Qe3 {[%clk 00:03:00]}
{[%emt 00:01:44]} Rf3 {[%clk 00:13:18]} {[%emt 00:06:51]} 35. Qxh6 {[%clk
00:02:04]} {[%emt 00:01:25]} Qb5 {[%clk 00:12:26]} {[%emt 00:01:21]} 36. Qe6
{[%clk 00:01:36]} {[%emt 00:00:58]} Qd3+ {[%clk 00:11:52]} {[%emt 00:01:05]} 37.
Kc1 {[%clk 00:00:49]} {[%emt 00:01:16]} Rf2 {[%clk 00:12:02]} {[%emt 00:00:22]}
38. Qb3 {[%clk 00:01:17]} {[%emt 00:00:01]} Qd2+ {[%clk 00:12:25]} {[%emt
00:00:07]} 0-1

[Event "Schack-SM 2022: Mastarklassen"]
[Site "Fyrishov, Idrottsgatan 2, Uppsala, Sweden"]
[Date "2022.07.05"]
[Round "4.3"]
[White "Eriksson, Dan"]
[Black "Lundberg, David"]
[Result "1-0"]
[TimeControl "90 minutes for 40 moves + 30 minutes for the rest of the game + 30 seconds per move from move one."]
[WhiteFideId "1710095"]
[BlackFideId "1707051"]
[WhiteElo "2246"]
[BlackElo "2219"]

1. e4 {[%clk 01:30:45]} {[%emt 00:00:13]} e5 {[%clk 01:28:05]} {[%emt
00:02:56]} 2. Nf3 {[%clk 01:31:08]} {[%emt 00:00:07]} Nc6 {[%clk 01:28:22]}
{[%emt 00:00:13]} 3. d4 {[%clk 01:31:10]} {[%emt 00:00:28]} exd4 {[%clk
01:28:46]} {[%emt 00:00:07]} 4. Nxd4 {[%clk 01:31:11]} {[%emt 00:00:29]} Nf6
{[%clk 01:28:42]} {[%emt 00:00:33]} 5. Nxc6 {[%clk 01:31:05]} {[%emt 00:00:36]}
bxc6 {[%clk 01:29:03]} {[%emt 00:00:09]} 6. e5 {[%clk 01:31:29]} {[%emt
00:00:06]} Qe7 {[%clk 01:29:08]} {[%emt 00:00:25]} 7. Qe2 {[%clk 01:31:50]}
{[%emt 00:00:08]} Nd5 {[%clk 01:29:31]} {[%emt 00:00:08]} 8. c4 {[%clk
01:32:11]} {[%emt 00:00:09]} Nb6 {[%clk 01:29:51]} {[%emt 00:00:09]} 9. Nc3
{[%clk 01:31:25]} {[%emt 00:01:17]} Ba6 {[%clk 01:29:34]} {[%emt 00:00:47]} 10.
b3 {[%clk 01:28:53]} {[%emt 00:03:03]} O-O-O {[%clk 01:21:52]} {[%emt
00:08:11]} 11. Bb2 {[%clk 01:23:10]} {[%emt 00:06:12]} Re8 {[%clk 01:17:33]}
{[%emt 00:04:50]} 12. f4 {[%clk 01:16:39]} {[%emt 00:07:02]} f6 {[%clk
01:13:10]} {[%emt 00:04:51]} 13. Ne4 {[%clk 01:12:37]} {[%emt 00:04:33]} d5
{[%clk 01:04:17]} {[%emt 00:09:22]} 14. Nd2 {[%clk 00:57:46]} {[%emt 00:15:22]}
dxc4 {[%clk 00:55:55]} {[%emt 00:08:52]} 15. Qe4 {[%clk 00:43:44]} {[%emt
00:14:31]} fxe5 {[%clk 00:43:05]} {[%emt 00:13:20]} 16. fxe5 {[%clk 00:43:02]}
{[%emt 00:01:12]} Qe6 {[%clk 00:43:14]} {[%emt 00:00:21]} 17. Be2 {[%clk
00:41:30]} {[%emt 00:02:03]} Kb7 {[%clk 00:37:15]} {[%emt 00:06:28]} 18. O-O
{[%clk 00:41:11]} {[%emt 00:00:49]} Bc5+ {[%clk 00:36:07]} {[%emt 00:01:38]} 19.
Kh1 {[%clk 00:41:25]} {[%emt 00:00:16]} Qd5 {[%clk 00:34:37]} {[%emt 00:02:00]}
20. Qc2 {[%clk 00:37:07]} {[%emt 00:04:48]} Bd4 {[%clk 00:26:46]} {[%emt
00:08:21]} 21. Bxd4 {[%clk 00:26:37]} {[%emt 00:11:01]} Qxd4 {[%clk 00:25:28]}
{[%emt 00:01:49]} 22. Nf3 {[%clk 00:27:02]} {[%emt 00:00:05]} Qc5 {[%clk
00:23:34]} {[%emt 00:02:23]} 23. bxc4 {[%clk 00:26:01]} {[%emt 00:01:31]} h6
{[%clk 00:18:52]} {[%emt 00:05:11]} 24. Qg6 {[%clk 00:21:37]} {[%emt 00:04:54]}
Re7 {[%clk 00:18:04]} {[%emt 00:01:18]} 25. Rad1 {[%clk 00:18:26]} {[%emt
00:03:41]} Rf8 {[%clk 00:16:43]} {[%emt 00:01:51]} 26. Rfe1 {[%clk 00:17:46]}
{[%emt 00:01:10]} Rf4 {[%clk 00:12:58]} {[%emt 00:04:14]} 27. g3 {[%clk
00:11:48]} {[%emt 00:06:30]} Rf8 {[%clk 00:12:07]} {[%emt 00:01:20]} 28. Qe4
{[%clk 00:12:12]} {[%emt 00:00:06]} Rfe8 {[%clk 00:09:36]} {[%emt 00:03:02]} 29.
Bf1 {[%clk 00:11:30]} {[%emt 00:01:12]} Kb8 {[%clk 00:07:12]} {[%emt 00:02:54]}
30. Nd4 {[%clk 00:08:42]} {[%emt 00:03:18]} Bb7 {[%clk 00:07:20]} {[%emt
00:00:22]} 31. e6 {[%clk 00:09:00]} {[%emt 00:00:12]} Ka8 {[%clk 00:02:31]}
{[%emt 00:05:20]} 32. Bg2 {[%clk 00:07:48]} {[%emt 00:01:42]} a5 {[%clk
00:01:38]} {[%emt 00:01:23]} 33. Rb1 {[%clk 00:06:34]} {[%emt 00:01:44]} Qxc4
{[%clk 00:01:17]} {[%emt 00:00:50]} 34. Rb5 {[%clk 00:05:20]} {[%emt 00:01:44]}
Qa4 {[%clk 00:01:25]} {[%emt 00:00:22]} 35. Rc5 {[%clk 00:04:27]} {[%emt
00:01:23]} Qb4 {[%clk 00:00:42]} {[%emt 00:01:13]} 36. Rec1 {[%clk 00:03:07]}
{[%emt 00:01:50]} a4 {[%clk 00:00:39]} {[%emt 00:00:33]} 37. a3 {[%clk
00:02:43]} {[%emt 00:00:55]} Rxe6 {[%clk 00:00:35]} {[%emt 00:00:34]} 38. Qxe6
{[%clk 00:02:20]} {[%emt 00:00:53]} 1-0